Workbook

Sheet Assignment (V2)
A1: Demand not equal supply and Simulation | C1: Name ______________________________
A3: 1. Randbetween Function? What does it do and what are the variables it uses? Enter response in A4
A6: Start with the template of Prod not = demand.
A7: Assume Demand is Randomly distributed between 1000 and 6000.
A8: Now assume Production doesn’t equal Demand. Set production to 3500 units (coffee and Donuts) each month.
A10: 2. Which line now must change to be based off the production number? Enter response in A11
A11: Line 4
A13: 3. What function can you use in Excel to calculate satisfied demand? ? Enter just function name in cell A14
A14: MIN function
A15: 4. Which line must be changed to be based off the Satisfied demand number? Enter the Heading for the row in below yellow box
A16: Line 6
A17: 5. What formula will you use to calculate Unsatisfied customers/Lost sales expense? Enter in below yellow box
A18: ABS(IF(B3-B4>0,B3-B4,0))
A19: 6. What formula will you use to calculate Revenue from Leftover donuts? Enter in below yellow box
A20: ABS(IF(B3-B4>0,0,B3-B4))
A21: Unsatisfied customers/Lost sales(coffee and Donuts) are set at $1.50. Leftover donuts can be sold at a day old donut store for $1.00, the coffee is thrown out. Add lines for both of these on your spread sheet.
A22: 7. What sections will you add Left Overs to? Enter in below yellow box.
A23: Revenue
A24: 8. What section will you add unhappy customer to? Enter in below yellow box
A25: Variable expense
A27: 9. Using the Financial Information sheet for Muffin, create a copy of donut sheet (production not = Demand) fill in the Spread sheet for muffin (Using a Production level of 4000 )
A28: see in muffins tab
A30: 10. What is the average yearly average profit for Donuts to Go and Mufffins to go? Enter amount in line C31, round to 2 decimal points
A31: 1496.36
A32: LOAD YOUR completed excel files to icollege folder, (to get to: Assessment, Assignments). Name your file as: Your last name crossover and Your last name

Sheet Prod not = demand (2)
A1: DTG | B1: lines added or changed | D1: Demand greater than | E1: Demand less than | G1: Production | H1: Left over revenue | I1: unhappy customers
D2: 1000 | E2: 6000 | G2: 3500 | H2: 1 | I2: 1.5
A3: Demand | B3: 4297 | C3: 1151 | D3: 2300 | E3: 3450 | F3: 5600 | G3: 4356 | H3: 2390 | I3: 5300 | J3: 2300 | K3: 1860 | L3: 2590 | M3: 4890
A4: Production | B4: 3500 | C4: 3500 | D4: 3500 | E4: 3500 | F4: 3500 | G4: 3500 | H4: 3500 | I4: 3500 | J4: 3500 | K4: 3500 | L4: 3500 | M4: 3500
A5: Month | B5: Jan | C5: Feb | D5: Mar | E5: Apr | F5: May | G5: Jun | H5: Jul | I5: Aug | J5: Sep | K5: Oct | L5: Nov | M5: Dec
A6: Quantity Sold/Satisfied Demand | B6: =MIN(B3,B4) -> 3500 | C6: =MIN(C3,C4) -> 1151 | D6: 2300 | E6: 3450 | F6: 3500 | G6: 3500 | H6: 2390 | I6: 3500 | J6: 2300 | K6: 1860 | L6: 2590 | M6: 3500
A7: Left Over Sales | B7: =ABS(IF(B3-B4>0,0,B3-B4)) -> 0 | C7: =ABS(IF(C3-C4>0,0,C3-C4)) -> 2349 | D7: 1200 | E7: 50 | F7: 0 | G7: 0 | H7: 1110 | I7: 0 | J7: 1200 | K7: 1640 | L7: 910 | M7: 0
A8: Lost Sales/Shortage | B8: =ABS(IF(B3-B4>0,B3-B4,0)) -> 797 | C8: =ABS(IF(C3-C4>0,C3-C4,0)) -> 0 | D8: 0 | E8: 0 | F8: 2100 | G8: =ABS(IF(G3-G4>0,G3-G4,0)) -> 856 | H8: 0 | I8: 1800 | J8: 0 | K8: 0 | L8: 0 | M8: 1390
A9: Revenue
A10: coffee | B10: =4*B6 -> 14000 | C10: =4*C6 -> 4604 | D10: =4*D6 -> 9200 | E10: 13800 | F10: 14000 | G10: 14000 | H10: 9560 | I10: 14000 | J10: 9200 | K10: 7440 | L10: 10360 | M10: =4*M6 -> 14000
A11: donut | B11: =3.5*B6 -> 12250 | C11: =3.5*C6 -> 4028.5 | D11: 8050 | E11: 12075 | F11: 12250 | G11: 12250 | H11: 8365 | I11: 12250 | J11: 8050 | K11: 6510 | L11: 9065 | M11: 12250
A12: left over rev | B12: =B7*1 -> 0 | C12: =C7*1 -> 2349 | D12: =D7*1 -> 1200 | E12: 50 | F12: 0 | G12: 0 | H12: 1110 | I12: 0 | J12: 1200 | K12: 1640 | L12: 910 | M12: 0
A13: Total Revenue | B13: =SUM(B10:B12) -> 26250 | C13: =SUM(C10:C12) -> 10981.5 | D13: 18450 | E13: 25925 | F13: 26250 | G13: 26250 | H13: 19035 | I13: 26250 | J13: 18450 | K13: 15590 | L13: 20335 | M13: 26250
A15: Fixed Expenses
A16: Total Fixed Expense | B16: =5550 -> 5550 | C16: =5550 -> 5550 | D16: =5550 -> 5550 | E16: =5550 -> 5550 | F16: =5550 -> 5550 | G16: =5550 -> 5550 | H16: =5550 -> 5550 | I16: =5550 -> 5550 | J16: =5550 -> 5550 | K16: =5550 -> 5550 | L16: =5550 -> 5550 | M16: =5550 -> 5550
A18: Variable Expenses
A19: Coffee Variable expense | B19: =0.35*B4 -> 1225 | C19: =0.35*C4 -> 1225 | D19: 1225 | E19: 1225 | F19: 1225 | G19: 1225 | H19: 1225 | I19: 1225 | J19: 1225 | K19: 1225 | L19: 1225 | M19: 1225
A20: Donut Variable expense | B20: =0.6*B4 -> 2100 | C20: =0.6*C4 -> 2100 | D20: =0.6*D4 -> 2100 | E20: 2100 | F20: 2100 | G20: 2100 | H20: 2100 | I20: 2100 | J20: 2100 | K20: 2100 | L20: 2100 | M20: 2100
A21: Unhappy Cust Exp | B21: =1.5*B8 -> 1195.5 | C21: =1.5*C8 -> 0 | D21: 0 | E21: 0 | F21: 3150 | G21: 1284 | H21: 0 | I21: 2700 | J21: 0 | K21: 0 | L21: 0 | M21: 2085
A22: Total Variable Expenses | B22: =SUM(B19:B21) -> 4520.5 | C22: =SUM(C19:C21) -> 3325 | D22: 3325 | E22: 3325 | F22: 6475 | G22: 4609 | H22: 3325 | I22: 6025 | J22: 3325 | K22: 3325 | L22: 3325 | M22: 5410
A23: Total Expenses | B23: =B22+B16 -> 10070.5 | C23: =C22+C16 -> 8875 | D23: 8875 | E23: 8875 | F23: 12025 | G23: 10159 | H23: 8875 | I23: 11575 | J23: 8875 | K23: 8875 | L23: 8875 | M23: 10960
A24: Profit Donuts and Coffee | B24: =B13-B23 -> 16179.5 | C24: =C13-C23 -> 2106.5 | D24: 9575 | E24: 17050 | F24: 14225 | G24: 16091 | H24: 10160 | I24: 14675 | J24: 9575 | K24: 6715 | L24: 11460 | M24: 15290

Sheet muffins
A1: MTG | B1: lines added or changed | D1: Demand greater than | E1: Demand less than | G1: Production | H1: Left over revenue | I1: unhappy customers
D2: 1000 | E2: 6000 | G2: 4000 | H2: 1 | I2: 1.5
A3: Demand | B3: 5848 | C3: 5511 | D3: 2300 | E3: 3450 | F3: 5600 | G3: 4356 | H3: 2390 | I3: 5300 | J3: 2300 | K3: 1860 | L3: 2590 | M3: 4890
A4: Production | B4: 4000 | C4: 4000 | D4: 4000 | E4: 4000 | F4: 4000 | G4: 4000 | H4: 4000 | I4: 4000 | J4: 4000 | K4: 4000 | L4: 4000 | M4: 4000
A5: Month | B5: Jan | C5: Feb | D5: Mar | E5: Apr | F5: May | G5: Jun | H5: Jul | I5: Aug | J5: Sep | K5: Oct | L5: Nov | M5: Dec
A6: Quantity Sold/Satisfied Demand | B6: =MIN(B3,B4) -> 4000 | C6: =MIN(C3,C4) -> 4000 | D6: 2300 | E6: 3450 | F6: 4000 | G6: 4000 | H6: 2390 | I6: 4000 | J6: 2300 | K6: 1860 | L6: 2590 | M6: 4000
A7: Left Over Sales | B7: =ABS(IF(B3-B4>0,0,B3-B4)) -> 0 | C7: =ABS(IF(C3-C4>0,0,C3-C4)) -> 0 | D7: 1700 | E7: 550 | F7: 0 | G7: 0 | H7: 1610 | I7: 0 | J7: 1700 | K7: 2140 | L7: 1410 | M7: 0
A8: Lost Sales/Shortage | B8: =ABS(IF(B3-B4>0,B3-B4,0)) -> 1848 | C8: =ABS(IF(C3-C4>0,C3-C4,0)) -> 1511 | D8: 0 | E8: 0 | F8: 1600 | G8: =ABS(IF(G3-G4>0,G3-G4,0)) -> 356 | H8: 0 | I8: 1300 | J8: 0 | K8: 0 | L8: 0 | M8: 890
A9: Revenue
A10: coffee | B10: =4*B6 -> 16000 | C10: =4*C6 -> 16000 | D10: =4*D6 -> 9200 | E10: 13800 | F10: 16000 | G10: 16000 | H10: 9560 | I10: 16000 | J10: 9200 | K10: 7440 | L10: 10360 | M10: =4*M6 -> 16000
A11: Muffins | B11: =5.5*B6 -> 22000 | C11: =5.5*C6 -> 22000 | D11: 12650 | E11: 18975 | F11: 22000 | G11: 22000 | H11: 13145 | I11: 22000 | J11: 12650 | K11: 10230 | L11: 14245 | M11: 22000
A12: left over rev | B12: =B7*1 -> 0 | C12: =C7*1 -> 0 | D12: =D7*1 -> 1700 | E12: 550 | F12: 0 | G12: 0 | H12: 1610 | I12: 0 | J12: 1700 | K12: 2140 | L12: 1410 | M12: 0
A13: Total Revenue | B13: =SUM(B10:B12) -> 38000 | C13: =SUM(C10:C12) -> 38000 | D13: 23550 | E13: 33325 | F13: 38000 | G13: 38000 | H13: 24315 | I13: 38000 | J13: 23550 | K13: 19810 | L13: 26015 | M13: 38000
A15: Fixed Expenses
A16: Total Fixed Expense | B16: 9350 | C16: 9350 | D16: 9350 | E16: 9350 | F16: 9350 | G16: 9350 | H16: 9350 | I16: 9350 | J16: 9350 | K16: 9350 | L16: 9350 | M16: 9350
A18: Variable Expenses
A19: Coffee Variable expense | B19: =0.35*B4 -> 1400 | C19: =0.35*C4 -> 1400 | D19: 1400 | E19: 1400 | F19: 1400 | G19: 1400 | H19: 1400 | I19: 1400 | J19: 1400 | K19: 1400 | L19: 1400 | M19: 1400
A20: Muffins Variable expense | B20: =1.2*B4 -> 4800 | C20: =1.2*C4 -> 4800 | D20: 4800 | E20: 4800 | F20: 4800 | G20: 4800 | H20: 4800 | I20: 4800 | J20: 4800 | K20: 4800 | L20: 4800 | M20: 4800
A21: Unhappy Cust Exp | B21: =1.5*B8 -> 2772 | C21: =1.5*C8 -> 2266.5 | D21: 0 | E21: 0 | F21: 2400 | G21: 534 | H21: 0 | I21: 1950 | J21: 0 | K21: 0 | L21: 0 | M21: 1335
A22: Total Variable Expenses | B22: =SUM(B19:B21) -> 8972 | C22: =SUM(C19:C21) -> 8466.5 | D22: 6200 | E22: 6200 | F22: 8600 | G22: 6734 | H22: 6200 | I22: 8150 | J22: 6200 | K22: 6200 | L22: 6200 | M22: 7535
A23: Total Expenses | B23: =B22+B16 -> 18322 | C23: =C22+C16 -> 17816.5 | D23: 15550 | E23: 15550 | F23: 17950 | G23: 16084 | H23: 15550 | I23: 17500 | J23: 15550 | K23: 15550 | L23: 15550 | M23: 16885
A24: Profit Donuts and Coffee | B24: =B13-B23 -> 19678 | C24: =C13-C23 -> 20183.5 | D24: 8000 | E24: 17775 | F24: 20050 | G24: 21916 | H24: 8765 | I24: 20500 | J24: 8000 | K24: 4260 | L24: 10465 | M24: 21115

Sheet Financial Information - data
A1: Donut Information | Z1: Andrice
A2: Based on the below data, create the profit model for Donuts to Go. | Z2: Spring 2020
A3: Assume that each customer will buy one donut and one cup of coffee
A4: Sales estimate range from 200-5000 per week
B7: Time period
A8: Revenue: Cup of Coffee | C8: 4
A9: Revenue: Donut | C9: 3.5
A10: Donut ingredients per donunt) | B10: per donut | C10: 0.6 | E10: =C12+C14+C15+C18+C19+C20+C21+C22+C23+C24+C26+C27 -> 5550
A11: paper products: napkins, plates etc
A12: Insurance | B12: month | C12: 200
A14: Maintenance & Repairs to equipment | B14: month | C14: 0
A15: Marketing & Promotion: Advertising | B15: month | C15: 50
A16: Coffee | B16: per cup | C16: 0.25
A17: Coffee cups | B17: per cup | C17: 0.1
A18: Payroll: Wages (Owner/ Manager) | B18: month | C18: 2500
A19: Payroll: Wages (per Employees) | B19: month | C19: 1000
A20: Donut and Coffee equipment rent | B20: month | C20: 500
A21: Professional Fees: Accounting | B21: month | C21: 50
A22: Professional Fees: Legal | B22: month | C22: 25
A23: Powdered and Liquid Beverages | C23: 0
A24: Rent | B24: month | C24: 1000
A25: Previous research expense for Donuts advancements | C25: 1500
A26: Supplies: Office | B26: month | C26: 25
A27: Utilities | B27: month | C27: 200
A29: Muffins to Go
A30: Assume that each customer will buy one muffin and one cup of coffee
A31: Sales estimate range from 200-5000 per week
A34: Muffin Financial Information
B35: Time period
A36: Revenue: Cup of Coffee | C36: 4
A37: Revenue: Muffin | C37: 5.5
A38: Muffin ingredients (per muffin) | B38: per donut | C38: 1.2
A39: paper products: napkins, plates etc
A40: Insurance | B40: month | C40: 500
A42: Maintenance & Repairs to equipment | B42: month | C42: 0
A43: Marketing & Promotion: Advertising | B43: month | C43: 250
A44: Coffee | B44: per cup | C44: 0.25
A45: Coffee cups | B45: per cup | C45: 0.1
A46: Payroll: Wages (Owner/ Manager) | B46: month | C46: 2500
A47: Payroll: Wages (per Employees) | B47: month | C47: 1000
A48: Muffin and Coffee equipment rent | B48: month | C48: 2500
A49: Professional Fees: Accounting | B49: month | C49: 50
A50: Professional Fees: Legal | B50: month | C50: 25
A51: Powdered and Liquid Beverages | C51: 0
A52: Rent | B52: month | C52: 2000
A53: Previous research expense for Muffin advancements | C53: 2000
A54: Supplies: Office | B54: month | C54: 25
A55: Utilities | B55: month | C55: 500

Sheet 5.ID (hidden)
A1: Do Not Alter or Delete this Worksheet or you submission cannot be graded! | E1: DirVer
A2: Action | B2: Name | C2: Panther ID | D2: Date/Time | E2: S01
A3: Start S01 | B3: Andrice | C3: 9999999 | D3: 2020-08-29T13:18:26.310 | E3: Microsoft Office User
A4: Starter Sheet | B4: None | C4: 0 | D4: 2020-01-01
E5: Welcome to Microsoft Excel version 16.16 build 810 running on Macintosh (Intel) Version 10.13.6 (Build 17G14019)!

Sheet Sheet9
Z1: Andrice
Z2: Spring 2020
